[Event "Live Chess"]
[Site "Chess.com"]
[Date "2023.05.20"]
[Round "-"]
[White "jennybobby44"]
[Black "luckywookie"]
[Result "1-0"]
[WhiteElo "1876"]
[BlackElo "744"]
[TimeControl "300"]
[EndTime "12:23:07 PDT"]
[Termination "jennybobby44 won on time"]

1. Nf3 {[%clk 0:04:59.3]} 1... d5 {[%clk 0:04:54.3]} 2. g3 {[%clk 0:04:58.2]}
2... c6 {[%clk 0:04:51.1]} 3. Bg2 {[%clk 0:04:57.3]} 3... g6 {[%clk 0:04:34.4]}
4. O-O {[%clk 0:04:55.7]} 4... Bg7 {[%clk 0:04:33.2]} 5. d4 {[%clk 0:04:49.8]}
5... Nd7 {[%clk 0:04:26.3]} 6. b3 {[%clk 0:04:47.3]} 6... e5 {[%clk 0:04:25.1]}
7. e3 {[%clk 0:04:41.6]} 7... Ne7 {[%clk 0:04:12.7]} 8. Bb2 {[%clk 0:04:39.9]}
8... e4 {[%clk 0:04:04.2]} 9. Nfd2 {[%clk 0:04:36.9]} 9... O-O {[%clk
0:03:58.7]} 10. f3 {[%clk 0:04:36.3]} 10... Nf6 {[%clk 0:03:53.6]} 11. fxe4
{[%clk 0:04:34.6]} 11... Nxe4 {[%clk 0:03:51.2]} 12. Nxe4 {[%clk 0:04:33.7]}
12... dxe4 {[%clk 0:03:50.1]} 13. Bxe4 {[%clk 0:04:33.6]} 13... Bf5 {[%clk
0:03:44.4]} 14. Bg2 {[%clk 0:04:27.8]} 14... Bh6 {[%clk 0:03:38.7]} 15. e4
{[%clk 0:04:24.6]} 15... Bc8 {[%clk 0:03:31]} 16. c4 {[%clk 0:04:23.3]} 16...
Be3+ {[%clk 0:03:18.2]} 17. Kh1 {[%clk 0:04:22.3]} 17... Bd7 {[%clk 0:03:01.9]}
18. Qd3 {[%clk 0:04:21.2]} 18... Bh6 {[%clk 0:02:54.8]} 19. Nd2 {[%clk
0:04:18.4]} 19... Qc8 {[%clk 0:02:53.6]} 20. Nf3 {[%clk 0:04:17.2]} 20... f6
{[%clk 0:02:49.1]} 21. Rae1 {[%clk 0:04:13.1]} 21... Bh3 {[%clk 0:02:42]} 22.
Qc3 {[%clk 0:04:04.6]} 22... g5 {[%clk 0:02:38.7]} 23. e5 {[%clk 0:03:53.9]}
23... g4 {[%clk 0:02:29.1]} 24. Nh4 {[%clk 0:03:52.6]} 24... f5 {[%clk
0:02:07.3]} 25. Bxh3 {[%clk 0:03:30.5]} 25... gxh3 {[%clk 0:02:04.5]} 26. Qf3
{[%clk 0:03:29.5]} 26... Bd2 {[%clk 0:01:24.7]} 27. Re2 {[%clk 0:03:23.3]} 27...
Bg5 {[%clk 0:01:09.6]} 28. Qh5 {[%clk 0:03:16.6]} 28... h6 {[%clk 0:01:05.3]}
29. Nf3 {[%clk 0:03:12.2]} 29... f4 {[%clk 0:00:51.8]} 30. Nxg5 {[%clk
0:03:03.9]} 30... hxg5 {[%clk 0:00:41.5]} 31. Qxg5+ {[%clk 0:03:02.7]} 31... Kh8
{[%clk 0:00:37.5]} 32. gxf4 {[%clk 0:03:00.6]} 32... Qf5 {[%clk 0:00:22.1]} 33.
Qxf5 {[%clk 0:02:59.4]} 33... Nxf5 {[%clk 0:00:18.3]} 34. Rf3 {[%clk 0:02:57]}
34... Nh4 {[%clk 0:00:16.2]} 35. Rxh3 {[%clk 0:02:56.2]} 35... Rxf4 {[%clk
0:00:12.8]} 36. Re1 {[%clk 0:02:36.2]} 36... Rf1+ {[%clk 0:00:12.7]} 37. Rxf1
{[%clk 0:02:35.2]} 37... Rg8 {[%clk 0:00:10.3]} 38. Rxh4+ {[%clk 0:02:33.2]}
38... Kg7 {[%clk 0:00:07.8]} 39. Rg4+ {[%clk 0:02:32.2]} 39... Kh7 {[%clk
0:00:06.2]} 40. Rxg8 {[%clk 0:02:32.1]} 40... Kxg8 {[%clk 0:00:05.2]} 41. e6
{[%clk 0:02:32]} 1-0

[Event "Live Chess"]
[Site "Chess.com"]
[Date "2023.05.20"]
[Round "-"]
[White "ViktorTheCoolBoy"]
[Black "raminguy"]
[Result "1-0"]
[WhiteElo "2528"]
[BlackElo "1990"]
[TimeControl "300"]
[EndTime "12:23:09 PDT"]
[Termination "ViktorTheCoolBoy won by resignation"]

1. Nf3 {[%clk 0:04:42.4]} 1... Nf6 {[%clk 0:04:57.7]} 2. d4 {[%clk 0:04:40.7]}
2... e6 {[%clk 0:04:57]} 3. c4 {[%clk 0:04:39.6]} 3... d5 {[%clk 0:04:56.7]} 4.
Nc3 {[%clk 0:04:37.9]} 4... a6 {[%clk 0:04:56.1]} 5. Bg5 {[%clk 0:04:33.4]} 5...
dxc4 {[%clk 0:04:54.6]} 6. e4 {[%clk 0:04:32.5]} 6... h6 {[%clk 0:04:53.2]} 7.
Bxf6 {[%clk 0:04:31]} 7... Qxf6 {[%clk 0:04:52.4]} 8. Bxc4 {[%clk 0:04:30.4]}
8... c5 {[%clk 0:04:51.4]} 9. e5 {[%clk 0:04:28.2]} 9... Qd8 {[%clk 0:04:50.3]}
10. O-O {[%clk 0:04:27.3]} 10... cxd4 {[%clk 0:04:49]} 11. Ne4 {[%clk
0:04:26.9]} 11... Nc6 {[%clk 0:04:45.2]} 12. Qe2 {[%clk 0:04:25.2]} 12... Bc5
{[%clk 0:04:42.7]} 13. Nxc5 {[%clk 0:04:23.2]} 1-0

[Event "Live Chess"]
[Site "Chess.com"]
[Date "2023.05.20"]
[Round "-"]
[White "bristolunichess"]
[Black "BostonStrangler"]
[Result "0-1"]
[WhiteElo "1771"]
[BlackElo "2065"]
[TimeControl "300"]
[EndTime "12:23:12 PDT"]
[Termination "BostonStrangler won by checkmate"]

1. c4 {[%clk 0:04:57.5]} 1... g6 {[%clk 0:04:57.1]} 2. d4 {[%clk 0:04:55.5]}
2... Bg7 {[%clk 0:04:55.6]} 3. Nc3 {[%clk 0:04:51.7]} 3... Nf6 {[%clk
0:04:50.8]} 4. Nf3 {[%clk 0:04:45.7]} 4... O-O {[%clk 0:04:47.6]} 5. Bf4 {[%clk
0:04:38.5]} 5... c5 {[%clk 0:04:42.8]} 6. e3 {[%clk 0:04:34.7]} 6... cxd4 {[%clk
0:04:40.2]} 7. exd4 {[%clk 0:04:32.3]} 7... d5 {[%clk 0:04:40.1]} 8. Qd2 {[%clk
0:04:04.5]} 8... Nc6 {[%clk 0:04:36.8]} 9. Be2 {[%clk 0:03:48.7]} 9... Ne4
{[%clk 0:04:31.9]} 10. Nxe4 {[%clk 0:03:35.8]} 10... dxe4 {[%clk 0:04:30.4]} 11.
Ng5 {[%clk 0:03:26.4]} 11... Nxd4 {[%clk 0:04:24.4]} 12. O-O {[%clk 0:03:07.5]}
12... Bf5 {[%clk 0:04:22.3]} 13. Rfd1 {[%clk 0:02:54.4]} 13... e5 {[%clk
0:04:17.4]} 14. Be3 {[%clk 0:02:40.1]} 14... h6 {[%clk 0:04:15.8]} 15. Nh3
{[%clk 0:02:27.3]} 15... Bxh3 {[%clk 0:04:13.8]} 16. gxh3 {[%clk 0:02:26.3]}
16... Qh4 {[%clk 0:04:10.2]} 17. Kh1 {[%clk 0:02:11]} 17... Qxh3 {[%clk
0:04:04]} 18. Bf1 {[%clk 0:01:54.1]} 18... Qh4 {[%clk 0:04:01.6]} 19. Bg2 {[%clk
0:01:41.5]} 19... Rad8 {[%clk 0:03:54.3]} 20. Qe1 {[%clk 0:01:27.8]} 20... Nf3
{[%clk 0:03:47.2]} 21. Bxf3 {[%clk 0:01:21.3]} 21... exf3 {[%clk 0:03:46]} 22.
Bxa7 {[%clk 0:01:09.8]} 22... Rxd1 {[%clk 0:03:28.3]} 23. Rxd1 {[%clk
0:01:07.3]} 23... Qxc4 {[%clk 0:03:25.8]} 24. b3 {[%clk 0:00:59.4]} 24... Qa6
{[%clk 0:03:22.2]} 25. Bc5 {[%clk 0:00:52]} 25... Re8 {[%clk 0:03:20.5]} 26. Qd2
{[%clk 0:00:45.4]} 26... e4 {[%clk 0:03:13.4]} 27. Be3 {[%clk 0:00:43]} 27...
Bf6 {[%clk 0:03:05.5]} 28. Bxh6 {[%clk 0:00:39.7]} 28... Rd8 {[%clk 0:02:59.7]}
29. Qc1 {[%clk 0:00:36.1]} 29... Rxd1+ {[%clk 0:02:42]} 30. Qxd1 {[%clk
0:00:26.3]} 30... Qxa2 {[%clk 0:02:37.9]} 31. Kg1 {[%clk 0:00:22.5]} 31... Qe2
{[%clk 0:02:31.1]} 32. Qc1 {[%clk 0:00:19]} 32... Bd4 {[%clk 0:02:20.5]} 33.
Qc8+ {[%clk 0:00:16.8]} 33... Kh7 {[%clk 0:02:18.9]} 34. Qh3 {[%clk 0:00:12.6]}
34... Qxf2+ {[%clk 0:02:15.1]} 35. Kh1 {[%clk 0:00:12]} 35... Qg1# {[%clk
0:02:14.3]} 0-1

[Event "Live Chess"]
[Site "Chess.com"]
[Date "2023.05.20"]
[Round "-"]
[White "vovanada"]
[Black "LiamClery2020"]
[Result "0-1"]
[WhiteElo "811"]
[BlackElo "2079"]
[TimeControl "300"]
[EndTime "12:23:14 PDT"]
[Termination "LiamClery2020 won by resignation"]

1. d4 {[%clk 0:04:55.4]} 1... Nf6 {[%clk 0:04:59.9]} 2. Bf4 {[%clk 0:04:54.1]}
2... d6 {[%clk 0:04:59]} 3. e3 {[%clk 0:04:53.5]} 3... Nc6 {[%clk 0:04:58.4]} 4.
Nf3 {[%clk 0:04:52.2]} 4... Bg4 {[%clk 0:04:57.9]} 5. Be2 {[%clk 0:04:50.4]}
5... Bxf3 {[%clk 0:04:55.9]} 6. Bxf3 {[%clk 0:04:50.3]} 6... e5 {[%clk
0:04:53.7]} 7. Bg3 {[%clk 0:04:47.5]} 7... e4 {[%clk 0:04:52.7]} 8. Be2 {[%clk
0:04:42.9]} 8... d5 {[%clk 0:04:51.2]} 9. c3 {[%clk 0:04:40.5]} 9... Bd6 {[%clk
0:04:50.3]} 10. Qb3 {[%clk 0:04:35.4]} 10... Rb8 {[%clk 0:04:45.2]} 11. Na3
{[%clk 0:04:25.3]} 11... O-O {[%clk 0:04:44.1]} 12. Nb5 {[%clk 0:04:22.7]} 12...
Ne7 {[%clk 0:04:42.3]} 13. Nxd6 {[%clk 0:04:19.3]} 13... cxd6 {[%clk 0:04:42.2]}
14. Qa3 {[%clk 0:03:57.2]} 14... Nf5 {[%clk 0:04:38.2]} 15. Bg4 {[%clk
0:03:49.3]} 15... Nxg4 {[%clk 0:04:36.7]} 16. h3 {[%clk 0:03:41.5]} 16... Nxg3
{[%clk 0:04:35.1]} 17. fxg3 {[%clk 0:03:40.2]} 17... Nxe3 {[%clk 0:04:34.5]} 18.
Qxa7 {[%clk 0:03:29.9]} 18... Nc2+ {[%clk 0:04:30.2]} 19. Kd2 {[%clk 0:03:27.6]}
19... Nxa1 {[%clk 0:04:30.1]} 20. Rxa1 {[%clk 0:03:26.4]} 20... Qg5+ {[%clk
0:04:29.6]} 21. Kc2 {[%clk 0:03:24.2]} 21... Qxg3 {[%clk 0:04:29.1]} 0-1

[Event "Live Chess"]
[Site "Chess.com"]
[Date "2023.05.20"]
[Round "-"]
[White "SupremeTactician"]
[Black "worldchessleaguelive"]
[Result "1-0"]
[WhiteElo "2380"]
[BlackElo "1368"]
[TimeControl "300"]
[EndTime "12:23:17 PDT"]
[Termination "SupremeTactician won by checkmate"]

1. e4 {[%clk 0:04:59.1]} 1... d5 {[%clk 0:04:58.9]} 2. exd5 {[%clk 0:04:58.4]}
2... Qxd5 {[%clk 0:04:58.2]} 3. Nc3 {[%clk 0:04:58.2]} 3... Qd8 {[%clk
0:04:57.4]} 4. d4 {[%clk 0:04:57.9]} 4... Nf6 {[%clk 0:04:56.7]} 5. Be3 {[%clk
0:04:57.7]} 5... e6 {[%clk 0:04:56]} 6. Nf3 {[%clk 0:04:57.4]} 6... Be7 {[%clk
0:04:54.8]} 7. Be2 {[%clk 0:04:57]} 7... O-O {[%clk 0:04:54.2]} 8. O-O {[%clk
0:04:56.8]} 8... h6 {[%clk 0:04:53.6]} 9. Qd2 {[%clk 0:04:56.6]} 9... c6 {[%clk
0:04:53.1]} 10. Rad1 {[%clk 0:04:56.5]} 10... Nbd7 {[%clk 0:04:51.4]} 11. Bd3
{[%clk 0:04:56]} 11... Nb6 {[%clk 0:04:50.5]} 12. h3 {[%clk 0:04:55.1]} 12...
Nbd5 {[%clk 0:04:49.7]} 13. Nxd5 {[%clk 0:04:54.5]} 13... exd5 {[%clk
0:04:48.2]} 14. c4 {[%clk 0:04:54.2]} 14... Be6 {[%clk 0:04:46.4]} 15. c5 {[%clk
0:04:53.2]} 15... b6 {[%clk 0:04:45.2]} 16. b4 {[%clk 0:04:52.5]} 16... bxc5
{[%clk 0:04:43.9]} 17. bxc5 {[%clk 0:04:52.4]} 17... a5 {[%clk 0:04:40]} 18. Ne5
{[%clk 0:04:51.7]} 18... Qc7 {[%clk 0:04:37.1]} 19. Bxh6 {[%clk 0:04:49.4]}
19... Nd7 {[%clk 0:04:35.5]} 20. Bf4 {[%clk 0:04:44.2]} 20... Nxe5 {[%clk
0:04:33.3]} 21. Bxe5 {[%clk 0:04:43.6]} 21... Qd7 {[%clk 0:04:30.6]} 22. Qe2
{[%clk 0:04:42.8]} 22... f6 {[%clk 0:04:27]} 23. Qh5 {[%clk 0:04:39.7]} 23...
fxe5 {[%clk 0:04:19.2]} 24. Bh7+ {[%clk 0:04:38.4]} 24... Kh8 {[%clk 0:04:16.6]}
25. Bg6+ {[%clk 0:04:38.3]} 25... Kg8 {[%clk 0:04:15.6]} 26. Qh7# {[%clk
0:04:38.2]} 1-0

[Event "Live Chess"]
[Site "Chess.com"]
[Date "2023.05.20"]
[Round "-"]
[White "rideuv21"]
[Black "ameetghasi100"]
[Result "0-1"]
[WhiteElo "1832"]
[BlackElo "2711"]
[TimeControl "300"]
[EndTime "12:23:31 PDT"]
[Termination "ameetghasi100 won by checkmate"]

1. e4 {[%clk 0:04:58.6]} 1... c5 {[%clk 0:04:59.8]} 2. c3 {[%clk 0:04:57.1]}
2... Nf6 {[%clk 0:04:56.6]} 3. e5 {[%clk 0:04:56.3]} 3... Nd5 {[%clk 0:04:52.4]}
4. d4 {[%clk 0:04:56]} 4... cxd4 {[%clk 0:04:51.1]} 5. Nf3 {[%clk 0:04:55.6]}
5... Nc6 {[%clk 0:04:48.7]} 6. cxd4 {[%clk 0:04:54]} 6... d6 {[%clk 0:04:48]} 7.
Bc4 {[%clk 0:04:52.4]} 7... e6 {[%clk 0:04:42]} 8. O-O {[%clk 0:04:49.9]} 8...
Be7 {[%clk 0:04:37.4]} 9. Qe2 {[%clk 0:04:47.2]} 9... O-O {[%clk 0:04:32.7]} 10.
Nc3 {[%clk 0:04:39.7]} 10... dxe5 {[%clk 0:04:17.6]} 11. dxe5 {[%clk 0:04:34]}
11... Na5 {[%clk 0:04:16.1]} 12. Bd3 {[%clk 0:04:31.6]} 12... b6 {[%clk
0:04:13.5]} 13. Qe4 {[%clk 0:03:04.9]} 13... g6 {[%clk 0:04:09.8]} 14. Bh6
{[%clk 0:03:04.3]} 14... Re8 {[%clk 0:04:03.2]} 15. Rad1 {[%clk 0:03:01.5]}
15... Bb7 {[%clk 0:04:01.4]} 16. Nxd5 {[%clk 0:03:00.3]} 16... Bxd5 {[%clk
0:03:58.8]} 17. Qf4 {[%clk 0:02:59.9]} 17... Qc7 {[%clk 0:03:52.8]} 18. Ng5
{[%clk 0:02:56.9]} 18... f5 {[%clk 0:03:44.9]} 19. g4 {[%clk 0:02:27.5]} 19...
Bxg5 {[%clk 0:03:35.1]} 20. Bxg5 {[%clk 0:02:24.7]} 20... fxg4 {[%clk
0:03:29.5]} 21. Bf6 {[%clk 0:02:23.3]} 21... Rf8 {[%clk 0:03:28.5]} 22. Qxg4
{[%clk 0:02:21.3]} 22... Rxf6 {[%clk 0:03:21.8]} 23. exf6 {[%clk 0:02:19.8]}
23... Qf7 {[%clk 0:03:18.2]} 24. Be4 {[%clk 0:02:09.8]} 24... Nc6 {[%clk
0:03:16.7]} 25. Bxd5 {[%clk 0:02:07.5]} 25... exd5 {[%clk 0:03:16.6]} 26. Qf3
{[%clk 0:02:05.2]} 26... Rd8 {[%clk 0:03:14.3]} 27. Rfe1 {[%clk 0:02:03.3]}
27... Rd6 {[%clk 0:03:11.4]} 28. Re2 {[%clk 0:01:46.1]} 28... d4 {[%clk
0:03:07.6]} 29. Rc2 {[%clk 0:01:41.1]} 29... Rxf6 {[%clk 0:03:02.9]} 30. Qe4
{[%clk 0:01:39.7]} 30... Re6 {[%clk 0:02:58.3]} 31. Qg2 {[%clk 0:01:26.4]} 31...
Qd7 {[%clk 0:02:39.8]} 32. Rdc1 {[%clk 0:01:14.9]} 32... d3 {[%clk 0:02:33.1]}
33. Rd2 {[%clk 0:00:39.6]} 33... Nd4 {[%clk 0:02:29.6]} 34. Rcd1 {[%clk
0:00:34.4]} 34... Ne2+ {[%clk 0:02:26.6]} 35. Kf1 {[%clk 0:00:32.1]} 35... Nf4
{[%clk 0:02:24.7]} 36. Qf3 {[%clk 0:00:29.8]} 36... g5 {[%clk 0:01:55.3]} 37.
Rxd3 {[%clk 0:00:28.9]} 37... Nxd3 {[%clk 0:01:53.8]} 38. Qxd3 {[%clk
0:00:28.8]} 38... Qc6 {[%clk 0:01:46.6]} 39. Qd8+ {[%clk 0:00:27.2]} 39... Re8
{[%clk 0:01:39.7]} 40. Qd7 {[%clk 0:00:26.5]} 40... Qh1# {[%clk 0:01:38.2]} 0-1

[Event "Live Chess"]
[Site "Chess.com"]
[Date "2023.05.20"]
[Round "-"]
[White "sup3rm0nk3y"]
[Black "thrithik"]
[Result "1-0"]
[WhiteElo "1320"]
[BlackElo "384"]
[TimeControl "300"]
[EndTime "12:23:39 PDT"]
[Termination "sup3rm0nk3y won by checkmate"]

1. b3 {[%clk 0:04:59.3]} 1... e6 {[%clk 0:04:58.8]} 2. Bb2 {[%clk 0:04:58.7]}
2... b6 {[%clk 0:04:57.5]} 3. e4 {[%clk 0:04:58]} 3... c6 {[%clk 0:04:57]} 4.
Bc4 {[%clk 0:04:56.6]} 4... Qg5 {[%clk 0:04:49.4]} 5. g3 {[%clk 0:04:53.9]} 5...
Qe5 {[%clk 0:04:41]} 6. Bxe5 {[%clk 0:04:49.9]} 6... f6 {[%clk 0:04:38.2]} 7.
Bb2 {[%clk 0:04:48.4]} 7... d6 {[%clk 0:04:36.9]} 8. d4 {[%clk 0:04:47.4]} 8...
Ba6 {[%clk 0:04:35.1]} 9. Bxa6 {[%clk 0:04:45.8]} 9... Nh6 {[%clk 0:04:32.8]}
10. Be2 {[%clk 0:04:42.6]} 10... g6 {[%clk 0:04:32.3]} 11. Nf3 {[%clk
0:04:40.9]} 11... Ng4 {[%clk 0:04:31.3]} 12. O-O {[%clk 0:04:39.4]} 12... h6
{[%clk 0:04:30.9]} 13. Nfd2 {[%clk 0:04:36.7]} 13... a6 {[%clk 0:04:29.2]} 14.
Bxg4 {[%clk 0:04:35.7]} 14... h5 {[%clk 0:04:24.7]} 15. Bxe6 {[%clk 0:04:32.8]}
15... f5 {[%clk 0:04:24.2]} 16. d5 {[%clk 0:04:31.4]} 16... cxd5 {[%clk
0:04:21.3]} 17. Bxh8 {[%clk 0:04:29.9]} 17... fxe4 {[%clk 0:04:16.7]} 18. Bxd5
{[%clk 0:04:28.6]} 18... Ra7 {[%clk 0:04:11.4]} 19. Nxe4 {[%clk 0:04:27.6]}
19... Nd7 {[%clk 0:03:59.4]} 20. Re1 {[%clk 0:04:19]} 20... Ne5 {[%clk
0:03:58.5]} 21. Bxe5 {[%clk 0:04:12.8]} 21... g5 {[%clk 0:03:57.1]} 22. Nxd6+
{[%clk 0:04:09.4]} 22... Bxd6 {[%clk 0:03:53.3]} 23. Bxd6+ {[%clk 0:04:09.3]}
23... Kd7 {[%clk 0:03:47]} 24. Be6+ {[%clk 0:04:05.8]} 24... Kc6 {[%clk
0:03:43.9]} 25. Qd5# {[%clk 0:04:04.8]} 1-0

[Event "Live Chess"]
[Site "Chess.com"]
[Date "2023.05.20"]
[Round "-"]
[White "LL220284LL"]
[Black "ProfPoisson"]
[Result "1-0"]
[WhiteElo "2401"]
[BlackElo "1071"]
[TimeControl "300"]
[EndTime "12:23:43 PDT"]
[Termination "LL220284LL won by checkmate"]

1. e3 {[%clk 0:04:58.6]} 1... e5 {[%clk 0:04:53.2]} 2. b3 {[%clk 0:04:57.3]}
2... d5 {[%clk 0:04:46]} 3. Bb2 {[%clk 0:04:56.2]} 3... Bd6 {[%clk 0:04:42.4]}
4. Nf3 {[%clk 0:04:55.6]} 4... Nc6 {[%clk 0:04:38.9]} 5. d4 {[%clk 0:04:54.1]}
5... e4 {[%clk 0:04:33.1]} 6. Ne5 {[%clk 0:04:53.1]} 6... Bxe5 {[%clk
0:04:15.9]} 7. dxe5 {[%clk 0:04:53]} 7... Qe7 {[%clk 0:04:13]} 8. Bb5 {[%clk
0:04:51.3]} 8... Bd7 {[%clk 0:04:10.1]} 9. Bxc6 {[%clk 0:04:46.5]} 9... Bxc6
{[%clk 0:04:07.8]} 10. O-O {[%clk 0:04:45.4]} 10... O-O-O {[%clk 0:04:03.9]} 11.
Nd2 {[%clk 0:04:44.2]} 11... h5 {[%clk 0:03:58.6]} 12. Qe2 {[%clk 0:04:43.1]}
12... f6 {[%clk 0:03:45.5]} 13. exf6 {[%clk 0:04:36.7]} 13... gxf6 {[%clk
0:03:42.6]} 14. c4 {[%clk 0:04:36]} 14... Nh6 {[%clk 0:03:35.1]} 15. cxd5 {[%clk
0:04:19.4]} 15... Bxd5 {[%clk 0:03:32.3]} 16. Rac1 {[%clk 0:04:16.1]} 16... Qd6
{[%clk 0:03:16.1]} 17. Nc4 {[%clk 0:04:10.2]} 17... Bxc4 {[%clk 0:03:09.5]} 18.
Qxc4 {[%clk 0:04:06.8]} 18... Ng4 {[%clk 0:03:06]} 19. g3 {[%clk 0:04:05.3]}
19... h4 {[%clk 0:03:01.6]} 20. Qxe4 {[%clk 0:04:03.8]} 20... Nxh2 {[%clk
0:02:50.5]} 21. Kxh2 {[%clk 0:03:57.8]} 21... hxg3+ {[%clk 0:02:48.2]} 22. Kg2
{[%clk 0:03:57]} 22... Rh2+ {[%clk 0:02:24.5]} 23. Kf3 {[%clk 0:03:51.9]} 23...
g2 {[%clk 0:02:10.7]} 24. Rg1 {[%clk 0:03:43.5]} 24... Rh3+ {[%clk 0:01:58.3]}
25. Kxg2 {[%clk 0:03:41.3]} 25... Qh2+ {[%clk 0:01:49.9]} 26. Kf1 {[%clk
0:03:40.2]} 26... a6 {[%clk 0:00:31.4]} 27. Qf4 {[%clk 0:03:32.6]} 27... Qxg1+
{[%clk 0:00:18.3]} 28. Kxg1 {[%clk 0:03:29.8]} 28... Rg8+ {[%clk 0:00:17.8]} 29.
Kf1 {[%clk 0:03:28.9]} 29... Rh1+ {[%clk 0:00:15.5]} 30. Ke2 {[%clk 0:03:28.2]}
30... Rgg1 {[%clk 0:00:07.8]} 31. Qxc7# {[%clk 0:03:26.4]} 1-0

[Event "Live Chess"]
[Site "Chess.com"]
[Date "2023.05.20"]
[Round "-"]
[White "viktorskliarov"]
[Black "OleksiyJr1"]
[Result "1-0"]
[WhiteElo "2650"]
[BlackElo "933"]
[TimeControl "300"]
[EndTime "12:23:44 PDT"]
[Termination "viktorskliarov won by resignation"]

1. e4 {[%clk 0:04:57.5]} 1... c5 {[%clk 0:04:49.8]} 2. Nf3 {[%clk 0:04:56]} 2...
Nc6 {[%clk 0:04:48]} 3. Bb5 {[%clk 0:04:54.5]} 3... Nf6 {[%clk 0:04:29.9]} 4.
Bxc6 {[%clk 0:04:53.1]} 4... bxc6 {[%clk 0:04:28.3]} 5. d3 {[%clk 0:04:52.1]}
5... Bb7 {[%clk 0:04:26.9]} 6. O-O {[%clk 0:04:50.6]} 6... e6 {[%clk 0:04:26.3]}
7. e5 {[%clk 0:04:49.4]} 7... Nd5 {[%clk 0:04:23.1]} 8. Nbd2 {[%clk 0:04:47.9]}
8... Be7 {[%clk 0:04:20.5]} 9. Ne4 {[%clk 0:04:44.1]} 9... O-O {[%clk 0:04:17]}
10. c4 {[%clk 0:04:43.2]} 10... Nc7 {[%clk 0:04:12.6]} 11. Be3 {[%clk
0:04:39.5]} 11... d5 {[%clk 0:04:09.3]} 12. exd6 {[%clk 0:04:37]} 12... Bxd6
{[%clk 0:04:07.5]} 13. Nxd6 {[%clk 0:04:24.3]} 13... Qxd6 {[%clk 0:04:04.9]} 14.
Ng5 {[%clk 0:04:13.6]} 14... Qe5 {[%clk 0:03:20.1]} 15. Rb1 {[%clk 0:03:58.4]}
15... Ne8 {[%clk 0:02:55.2]} 16. Ne4 {[%clk 0:03:48.1]} 16... Nf6 {[%clk
0:02:36.4]} 17. Nxc5 {[%clk 0:03:32.7]} 17... Rab8 {[%clk 0:02:22.2]} 18. h3
{[%clk 0:03:22.7]} 18... Bc8 {[%clk 0:02:11.3]} 19. b4 {[%clk 0:03:15.8]} 19...
Nd7 {[%clk 0:01:56.6]} 20. Qf3 {[%clk 0:03:07.8]} 20... Nxc5 {[%clk 0:01:42.1]}
21. Bxc5 {[%clk 0:03:05.6]} 21... Rd8 {[%clk 0:01:28.9]} 22. Bxa7 {[%clk
0:03:01.1]} 22... Rb7 {[%clk 0:01:22.9]} 23. Bc5 {[%clk 0:02:59.2]} 23... Qc3
{[%clk 0:01:18.8]} 24. Rfd1 {[%clk 0:02:51.4]} 24... Qc2 {[%clk 0:01:00.8]} 25.
Rbc1 {[%clk 0:02:41.1]} 25... Qxa2 {[%clk 0:00:42.6]} 26. Qxc6 {[%clk 0:02:39]}
1-0

[Event "Live Chess"]
[Site "Chess.com"]
[Date "2023.05.20"]
[Round "-"]
[White "booktrunk"]
[Black "SirEntrails"]
[Result "1-0"]
[WhiteElo "1320"]
[BlackElo "537"]
[TimeControl "300"]
[EndTime "12:23:45 PDT"]
[Termination "booktrunk won by resignation"]

1. d4 {[%clk 0:04:59.5]} 1... d5 {[%clk 0:04:57.4]} 2. c3 {[%clk 0:04:58.9]}
2... Bf5 {[%clk 0:04:51.4]} 3. Bf4 {[%clk 0:04:55.6]} 3... Nc6 {[%clk
0:04:49.8]} 4. Nd2 {[%clk 0:04:54.9]} 4... f6 {[%clk 0:04:45.6]} 5. h3 {[%clk
0:04:52.3]} 5... e5 {[%clk 0:04:44]} 6. dxe5 {[%clk 0:04:50.9]} 6... Nxe5 {[%clk
0:04:41.1]} 7. Ngf3 {[%clk 0:04:47.1]} 7... Ne7 {[%clk 0:04:33.5]} 8. Bxe5
{[%clk 0:04:43.6]} 8... fxe5 {[%clk 0:04:30.1]} 9. Nxe5 {[%clk 0:04:42.7]} 9...
Ng6 {[%clk 0:04:23.2]} 10. Nxg6 {[%clk 0:04:41.5]} 10... Bxg6 {[%clk 0:04:22]}
11. e3 {[%clk 0:04:40.8]} 11... Bc5 {[%clk 0:04:16.5]} 12. Nf3 {[%clk
0:04:39.1]} 12... Qf6 {[%clk 0:04:10.3]} 13. Bd3 {[%clk 0:04:36]} 13... Bxd3
{[%clk 0:04:08.1]} 14. Qxd3 {[%clk 0:04:34.8]} 14... O-O-O {[%clk 0:04:06.8]}
15. O-O-O {[%clk 0:04:31.4]} 15... h5 {[%clk 0:03:47.5]} 16. Rhf1 {[%clk
0:04:27.4]} 16... g6 {[%clk 0:03:46.4]} 17. Qb5 {[%clk 0:04:14.6]} 17... Qb6
{[%clk 0:03:38.5]} 18. Qa4 {[%clk 0:03:56.3]} 18... Rhe8 {[%clk 0:03:25.4]} 19.
Qc2 {[%clk 0:03:52.3]} 19... c6 {[%clk 0:03:09.8]} 20. Qxg6 {[%clk 0:03:47.6]}
20... h4 {[%clk 0:03:05.7]} 21. Qg4+ {[%clk 0:03:42.3]} 21... Rd7 {[%clk
0:03:02.5]} 22. Qxh4 {[%clk 0:03:40.4]} 22... Re4 {[%clk 0:02:55.5]} 23. Qh8+
{[%clk 0:03:29.8]} 23... Rd8 {[%clk 0:02:52.5]} 24. Qh7 {[%clk 0:03:27.4]} 24...
Ra4 {[%clk 0:02:43.3]} 25. a3 {[%clk 0:03:16.1]} 25... Bxa3 {[%clk 0:02:34]} 26.
Qf5+ {[%clk 0:03:10.6]} 26... Rd7 {[%clk 0:02:32.2]} 27. bxa3 {[%clk 0:03:06.1]}
27... Rxa3 {[%clk 0:02:28.3]} 28. Qf8+ {[%clk 0:03:04.7]} 28... Rd8 {[%clk
0:02:26.9]} 29. Qxa3 {[%clk 0:03:03.2]} 29... Qa6 {[%clk 0:02:16.2]} 30. Qxa6
{[%clk 0:03:01.8]} 30... bxa6 {[%clk 0:02:15.4]} 31. Rd2 {[%clk 0:02:59.7]}
31... Kb7 {[%clk 0:02:11.5]} 32. Kc2 {[%clk 0:02:58.6]} 32... Rg8 {[%clk
0:02:08.9]} 33. Rb1+ {[%clk 0:02:55.1]} 33... Kc7 {[%clk 0:02:07.2]} 34. g4
{[%clk 0:02:52.8]} 34... Rh8 {[%clk 0:02:04.9]} 35. Ng1 {[%clk 0:02:51.7]} 35...
Rh4 {[%clk 0:02:02.4]} 36. f4 {[%clk 0:02:49.9]} 36... Kd6 {[%clk 0:01:56.3]}
37. Rf2 {[%clk 0:02:48.9]} 37... Ke6 {[%clk 0:01:54.4]} 38. f5+ {[%clk
0:02:47.3]} 38... Kf6 {[%clk 0:01:51.1]} 39. Rb7 {[%clk 0:02:45.1]} 39... Kg5
{[%clk 0:01:45.6]} 40. Rxa7 {[%clk 0:02:42.7]} 40... Rh6 {[%clk 0:01:42.9]} 41.
Rxa6 {[%clk 0:02:41.1]} 41... Kh4 {[%clk 0:01:42]} 42. f6 {[%clk 0:02:36.9]}
42... Kg3 {[%clk 0:01:40.3]} 43. f7 {[%clk 0:02:34.7]} 43... Kxf2 {[%clk
0:01:39]} 44. f8=Q+ {[%clk 0:02:32.9]} 44... Kxg1 {[%clk 0:01:37.1]} 45. Qxh6
{[%clk 0:02:31.9]} 45... Kg2 {[%clk 0:01:34.8]} 46. Qxc6 {[%clk 0:02:30.1]}
46... Kxh3 {[%clk 0:01:33.8]} 47. Qxd5 {[%clk 0:02:29.4]} 47... Kxg4 {[%clk
0:01:32.9]} 48. c4 {[%clk 0:02:28.4]} 1-0